fUST/lending_fUST_20250215
["ID","MTS","AMOUNT","RATE_DAILY","PERIOD"]
[353153015,1739614234181,-500.0,8.848e-05,2]
[353153016,1739614234191,-269.74971623,8.848e-05,2]
[353153017,1739614234200,-2174.17,8.848e-05,2]
[353153018,1739614234209,-29169.13,8.849e-05,2]
[353153019,1739614234218,-70688.79,8.849e-05,2]
[353153020,1739614234228,-3671.16,8.849e-05,2]
[353153021,1739614234237,-4007.73,8.849e-05,2]
[353153022,1739614234247,-505.69,8.849e-05,2]
[353153023,1739614234256,-2553.63,8.849e-05,2]
[353153024,1739614234266,-1204.81,8.849e-05,2]
[353153025,1739614234276,-1357.2,8.849e-05,2]
[353153026,1739614234286,-1282.62,8.849e-05,2]
[353153027,1739614234296,-500.0,8.849e-05,2]
[353153028,1739614234305,-830.17,8.849e-05,2]
[353153029,1739614234315,-24103.87,8.849e-05,2]
[353153030,1739614234325,-2427.69,8.849e-05,2]
[353153031,1739614234423,-500.0,8.85e-05,2]
[353153032,1739614234435,-486.95820269,8.85e-05,2]
[353153033,1739614234445,-560.18,8.85e-05,2]
[353153034,1739614234454,-506.08,8.85e-05,2]
[353153035,1739614234464,-500.0,8.85e-05,2]
[353153036,1739614234474,-500.0,8.85e-05,2]
[353153037,1739614234484,-502.01863166,8.85e-05,2]
[353153038,1739614234493,-500.0,8.85e-05,2]
[353153039,1739614234503,-500.0,8.85e-05,2]
[353153040,1739614234512,-500.0,8.85e-05,2]
[353153041,1739614234521,-500.0,8.85e-05,2]
[353153042,1739614234530,-505.59736807,8.85e-05,2]
[353153043,1739614234540,-501.31716771,8.85e-05,2]
[353153044,1739614234550,-151.0,8.85e-05,2]
[353153045,1739614234560,-151.0,8.85e-05,2]
[353153046,1739614234571,-500.0,8.85e-05,2]
[353153047,1739614234581,-500.0,8.85e-05,2]
[353153048,1739614234592,-500.0,8.85e-05,2]
[353153049,1739614234601,-500.0,8.85e-05,2]
[353153050,1739614234610,-500.0,8.85e-05,2]
[353153051,1739614234620,-500.0,8.85e-05,2]
[353153052,1739614234629,-500.0,8.85e-05,2]
[353153053,1739614234639,-1482.26,8.85e-05,2]
[353153054,1739614234649,-500.0,8.85e-05,2]
[353153055,1739614234658,-500.0,8.85e-05,2]
[353153056,1739614234668,-516.72,8.85e-05,2]
[353153057,1739614234678,-500.0,8.85e-05,2]
[353153058,1739614234687,-231.4071698,8.85e-05,2]
[353153059,1739614234696,-283.08909679,8.85e-05,2]
[353153060,1739614234705,-501.13243655,8.85e-05,2]
[353153061,1739614234714,-500.0,8.85e-05,2]
[353153062,1739614234724,-500.0,8.85e-05,2]
[353153063,1739614234734,-511.40904335,8.85e-05,2]
[353153064,1739614234744,-500.56903426,8.85e-05,2]
[353153065,1739614234754,-501.09814126,8.85e-05,2]
[353153066,1739614234763,-500.0,8.85e-05,2]
[353153067,1739614234773,-500.0,8.85e-05,2]
[353153068,1739614234782,-198.7135039,8.85e-05,2]
[353153069,1739614234791,-500.0,8.85e-05,2]
[353153070,1739614234801,-500.0,8.85e-05,2]
[353153071,1739614234810,-500.0,8.85e-05,2]
[353153072,1739614234819,-502.47965469,8.85e-05,2]
[353153073,1739614234828,-257.90410599,8.85e-05,2]
[353153074,1739614234844,-242.09589401,8.85e-05,2]
[353153075,1739614234854,-500.0,8.85e-05,2]
[353153076,1739614234863,-500.0,8.85e-05,2]
[353153077,1739614234872,-500.0,8.85e-05,2]
[353153078,1739614234884,-379.80565299,8.85e-05,2]
[353153079,1739614234893,-678.67,8.85e-05,2]
[353153080,1739614234903,-525.12688584,8.85e-05,2]
[353153081,1739614234912,-501.46264206,8.85e-05,2]
[353153082,1739614234921,-548.1,8.85e-05,2]
[353153083,1739614234930,-500.0,8.85e-05,2]
[353153084,1739614234940,-681.1,8.85e-05,2]
[353153085,1739614234949,-500.0,8.85e-05,2]
[353153086,1739614234959,-500.0,8.85e-05,2]
[353153087,1739614234969,-500.0,8.85e-05,2]
[353153088,1739614234978,-502.0733386,8.85e-05,2]
[353153089,1739614234988,-500.0,8.85e-05,2]
[353153090,1739614234998,-500.0,8.85e-05,2]
[353153091,1739614235007,-2585.42,8.85e-05,2]
[353153092,1739614235016,-500.0,8.85e-05,2]
[353153093,1739614235026,-500.0,8.85e-05,2]
[353153094,1739614235036,-500.0,8.85e-05,2]
[353153095,1739614235045,-500.0,8.85e-05,2]
[353153096,1739614235055,-2664.45,8.85e-05,2]
[353153097,1739614235065,-500.0,8.85e-05,2]
[353153098,1739614235074,-302.12915145,8.85e-05,2]
[353153099,1739614235084,-503.27632761,8.85e-05,2]
[353153100,1739614235093,-500.0,8.85e-05,2]
[353153101,1739614235102,-169.35245346,8.85e-05,2]
[353153102,1739614235111,-501.11356661,8.85e-05,2]
[353153103,1739614235121,-500.0,8.85e-05,2]
[353153104,1739614235130,-500.0,8.85e-05,2]
[353153105,1739614235139,-500.0,8.85e-05,2]
[353153106,1739614235148,-500.0,8.85e-05,2]
[353153107,1739614235158,-984.03,8.85e-05,2]
[353153108,1739614235167,-500.0,8.85e-05,2]
[353153109,1739614235176,-356.00077079,8.85e-05,2]
[353153110,1739614235186,-501.63827116,8.85e-05,2]
[353153111,1739614235196,-500.0,8.85e-05,2]
[353153112,1739614235206,-233.43618611,8.85e-05,2]
[353153113,1739614235215,-2455.15,8.85e-05,2]
[353153114,1739614235224,-500.0,8.85e-05,2]
[353153115,1739614235234,-500.0,8.85e-05,2]
[353153116,1739614235243,-508.06195825,8.85e-05,2]
[353153117,1739614235252,-500.0,8.85e-05,2]
[353153118,1739614235262,-500.0,8.85e-05,2]
[353153119,1739614235272,-949.19,8.85e-05,2]
[353153120,1739614235281,-563.04,8.85e-05,2]
[353153121,1739614235291,-500.0,8.85e-05,2]
[353153122,1739614235300,-1441.99,8.85e-05,2]
[353153123,1739614235310,-621.93,8.85e-05,2]
[353153124,1739614235319,-502.10352721,8.85e-05,2]
[353153125,1739614235329,-500.0,8.85e-05,2]
[353153126,1739614235338,-500.0,8.85e-05,2]
[353153127,1739614235348,-500.0,8.85e-05,2]
[353153128,1739614235358,-500.0,8.85e-05,2]
[353153129,1739614235368,-780.29,8.85e-05,2]
[353153130,1739614235377,-500.0,8.85e-05,2]
[353153131,1739614235390,-500.0,8.85e-05,2]
[353153132,1739614235400,-500.0,8.85e-05,2]
[353153133,1739614235409,-1449.48,8.85e-05,2]
[353153134,1739614235418,-500.0,8.85e-05,2]
[353153135,1739614235429,-500.0,8.85e-05,2]
[353153136,1739614235439,-500.0,8.85e-05,2]
[353153137,1739614235448,-500.0,8.85e-05,2]
[353153138,1739614235458,-2400.47,8.85e-05,2]
[353153139,1739614235468,-840.09,8.85e-05,2]
[353153140,1739614235478,-515.178511,8.851e-05,2]
[353153141,1739614235488,-500.0,8.851e-05,2]
[353153142,1739614235498,-268.32934947,8.851e-05,2]
[353153143,1739614235507,-504.62176532,8.851e-05,2]
[353153144,1739614235516,-254.07532971,8.851e-05,2]
[353153145,1739614235525,-500.0,8.851e-05,2]
[353153146,1739614235535,-567.67292802,8.851e-05,2]
[353153147,1739614235545,-151.0,8.851e-05,2]
[353153148,1739614235554,-151.0,8.851e-05,2]
[353153149,1739614235563,-151.0,8.851e-05,2]
[353153150,1739614235572,-151.0,8.851e-05,2]
[353153151,1739614235582,-153.528728,8.854e-05,2]
[353153152,1739614235591,-592.06540596,8.855e-05,2]
[353153153,1739614235600,-374.99246179,8.855e-05,2]
[353153154,1739614235610,-65695.06252769,8.86e-05,2]
[353153155,1739614235620,-1837.29779018,8.868e-05,2]
[353153156,1739614235629,-1837.29779018,8.889e-05,2]
[353153157,1739614235639,-645.49056425,8.9e-05,2]
[353153158,1739614235649,-6203.09826408,8.9e-05,2]
[353153159,1739614235659,-1837.29779018,8.909e-05,2]
[353153160,1739614235669,-215.9483191,8.91e-05,2]
[353153161,1739614235680,-154.666516,8.91e-05,2]
[353153162,1739614235692,-355.0331824,8.91e-05,2]
[353153163,1739614235702,-153.0,8.91e-05,2]
[353153164,1739614235712,-153.0,8.91e-05,2]
[353153165,1739614235721,-153.0,8.91e-05,2]
[353153166,1739614235731,-215.9483191,8.91e-05,2]
[353153167,1739614235742,-209.1396803,8.91e-05,2]
[353153168,1739614235752,-308.1914392,8.91e-05,2]
[353153169,1739614235762,-153.0,8.91e-05,2]
[353153170,1739614235771,-153.0,8.91e-05,2]
[353153171,1739614235780,-355.0331824,8.91e-05,2]
[353153172,1739614235789,-215.9004297,8.91e-05,2]
[353153173,1739614235799,-272.9640177,8.91e-05,2]
[353153174,1739614235808,-153.0,8.91e-05,2]
[353153175,1739614235817,-153.0,8.91e-05,2]
[353153176,1739614235827,-355.0331824,8.91e-05,2]
[353153177,1739614235836,-153.0,8.91e-05,2]
[353153178,1739614235846,-154.6845572,8.91e-05,2]
[353153179,1739614235856,-215.9483191,8.91e-05,2]
[353153180,1739614235865,-215.9483191,8.91e-05,2]
[353153181,1739614235875,-153.0,8.91e-05,2]
[353153182,1739614235884,-215.9483191,8.91e-05,2]
[353153183,1739614235894,-153.0,8.91e-05,2]
[353153184,1739614235903,-153.0,8.91e-05,2]
[353153185,1739614235913,-154.6845572,8.91e-05,2]
[353153186,1739614235922,-355.0331824,8.91e-05,2]
[353153187,1739614235933,-385.9273307,8.91e-05,2]
[353153188,1739614235943,-355.0331824,8.91e-05,2]
[353153189,1739614236036,-154.2357344,8.91e-05,2]
[353153190,1739614236046,-215.9483191,8.91e-05,2]
[353153191,1739614236056,-153.0,8.91e-05,2]
[353153192,1739614236066,-153.0,8.91e-05,2]
[353153193,1739614236080,-153.0,8.91e-05,2]
[353153194,1739614236101,-154.6993501,8.91e-05,2]
[353153195,1739614236111,-215.9483191,8.91e-05,2]
[353153196,1739614236120,-153.0,8.91e-05,2]
[353153197,1739614236130,-355.0331824,8.91e-05,2]
[353153198,1739614236140,-155.8142976,8.91e-05,2]
[353153199,1739614236149,-153.0,8.91e-05,2]
[353153200,1739614236158,-153.0,8.91e-05,2]
[353153201,1739614236168,-296.8426549,8.91e-05,2]
[353153202,1739614236178,-306.4532908,8.91e-05,2]
[353153203,1739614236187,-215.9483191,8.91e-05,2]
[353153204,1739614236197,-348.0207337,8.91e-05,2]
[353153205,1739614236206,-1970.0,8.926e-05,2]
[353153206,1739614236216,-540.018,8.926e-05,2]
[353153207,1739614236225,-2305.825,8.926e-05,2]
[353153208,1739614236234,-396.0,8.926e-05,2]
[353153209,1739614236245,-410.252,8.926e-05,2]
[353153210,1739614236255,-570.34317486,8.929e-05,2]
[353153211,1739614236264,-1758.84,8.929e-05,2]
[353153212,1739614236274,-4818.92,8.929e-05,2]
[353153213,1739614236283,-519.93,8.929e-05,2]
[353153214,1739614236292,-570.37,8.929e-05,2]
[353153215,1739614236301,-500.0,8.929e-05,2]
[353153216,1739614236311,-755.65,8.929e-05,2]
[353153217,1739614236321,-1406.53,8.929e-05,2]
[353153218,1739614236330,-4038.89,8.929e-05,2]
[353153219,1739614236339,-2833.27,8.929e-05,2]
[353153220,1739614236349,-11313.15,8.929e-05,2]
[353153221,1739614236359,-1837.29779018,8.929e-05,2]
[353153222,1739614236368,-3791.85,8.929e-05,2]
[353153223,1739614236380,-1943.16,8.929e-05,2]
[353153224,1739614236391,-557.5,8.929e-05,2]
[353153225,1739614236401,-500.0,8.929e-05,2]
[353153226,1739614236411,-2419.32,8.929e-05,2]
[353153227,1739614236421,-830.12,8.929e-05,2]
[353153228,1739614236431,-5756.09,8.929e-05,2]
[353153229,1739614236441,-500.0,8.929e-05,2]
[353153230,1739614236451,-500.0,8.929e-05,2]
[353153231,1739614236462,-3060.26,8.929e-05,2]
[353153232,1739614236472,-1388.66,8.929e-05,2]
[353153233,1739614236482,-1000.92,8.929e-05,2]
[353153234,1739614236492,-796.62,8.929e-05,2]
[353153235,1739614236501,-2981.4,8.929e-05,2]
[353153236,1739614236511,-4216.24,8.929e-05,2]
[353153237,1739614236520,-612.78,8.929e-05,2]
[353153238,1739614236530,-7897.34,8.929e-05,2]
[353153239,1739614236540,-2082.03,8.929e-05,2]
[353153240,1739614236551,-500.0,8.929e-05,2]
[353153241,1739614236561,-500.0,8.93e-05,2]
[353153242,1739614236570,-1097.39,8.93e-05,2]
[353153243,1739614236579,-938.02,8.93e-05,2]
[353153244,1739614236588,-968.8,8.93e-05,2]
[353153245,1739614236598,-500.0,8.93e-05,2]
[353153246,1739614236607,-1826.62,8.93e-05,2]
[353153247,1739614236618,-500.0,8.93e-05,2]
[353153248,1739614236628,-1580.3,8.93e-05,2]
[353153249,1739614236638,-500.0,8.93e-05,2]
[353153250,1739614236649,-936.39,8.93e-05,2]
[353153251,1739614236658,-500.0,8.93e-05,2]
[353153252,1739614236668,-500.0,8.93e-05,2]
[353153253,1739614236678,-500.0,8.93e-05,2]
[353153254,1739614236689,-500.0,8.93e-05,2]
[353153255,1739614236698,-984.05,8.93e-05,2]
[353153256,1739614236707,-500.0,8.93e-05,2]
[353153257,1739614236717,-411.76366975,8.93e-05,2]
[353153258,1739614236727,-500.0,8.93e-05,2]
[353153259,1739614236737,-1401.5,8.93e-05,2]
[353153260,1739614236748,-616.56,8.93e-05,2]
[353153261,1739614236758,-1055.39,8.93e-05,2]
[353153262,1739614236767,-615.63821157,8.93e-05,2]
[353153263,1739614236777,-500.0,8.93e-05,2]
[353153264,1739614236786,-500.0,8.93e-05,2]
[353153265,1739614236796,-984.78,8.93e-05,2]
[353153266,1739614236806,-500.0,8.93e-05,2]
[353153267,1739614236815,-831.98,8.93e-05,2]
[353153268,1739614236825,-1038.73,8.93e-05,2]
[353153269,1739614236834,-500.0,8.93e-05,2]
[353153270,1739614236843,-500.0,8.93e-05,2]
[353153271,1739614236853,-500.0,8.93e-05,2]
[353153272,1739614236863,-500.0,8.93e-05,2]
[353153273,1739614236872,-500.0,8.93e-05,2]
[353153274,1739614236882,-750.36,8.93e-05,2]
[353153275,1739614236892,-500.0,8.93e-05,2]
[353153276,1739614236901,-1651.39,8.93e-05,2]
[353153277,1739614236910,-504.56195438,8.93e-05,2]
[353153278,1739614236920,-500.0,8.93e-05,2]
[353153279,1739614236930,-500.0,8.93e-05,2]
[353153280,1739614236940,-500.0,8.93e-05,2]
[353153281,1739614236949,-500.0,8.93e-05,2]
[353153282,1739614236959,-500.0,8.93e-05,2]
[353153283,1739614236968,-500.0,8.93e-05,2]
[353153284,1739614236978,-500.0,8.93e-05,2]
[353153285,1739614236987,-975.88,8.93e-05,2]
[353153286,1739614236996,-500.0,8.93e-05,2]
[353153287,1739614237006,-500.0,8.93e-05,2]
[353153288,1739614237015,-500.0,8.93e-05,2]
[353153289,1739614237024,-500.0,8.93e-05,2]
[353153290,1739614237034,-500.0,8.93e-05,2]
[353153291,1739614237043,-1243.19,8.93e-05,2]
[353153292,1739614237052,-500.0,8.93e-05,2]
[353153293,1739614237062,-500.0,8.93e-05,2]
[353153294,1739614237071,-500.0,8.93e-05,2]
[353153295,1739614237080,-357.56300075,8.93e-05,2]
[353153296,1739614237089,-500.0,8.93e-05,2]
[353153297,1739614237099,-500.0,8.93e-05,2]
[353153298,1739614237108,-500.0,8.93e-05,2]
[353153299,1739614237117,-500.0,8.93e-05,2]
[353153300,1739614237126,-500.0,8.93e-05,2]
[353153301,1739614237136,-230.80718819,8.93e-05,2]
[353153302,1739614237145,-619.64,8.93e-05,2]
[353153304,1739614237155,-6071.7,8.93e-05,2]
[353153306,1739614237165,-1678.06,8.93e-05,2]
[353153308,1739614237174,-500.0,8.93e-05,2]
[353153310,1739614237183,-500.0,8.93e-05,2]
[353153311,1739614237192,-500.0,8.93e-05,2]
[353153312,1739614237201,-500.0,8.93e-05,2]
[353153313,1739614237210,-1389.12,8.93e-05,2]
[353153314,1739614237220,-500.0,8.93e-05,2]
[353153315,1739614237230,-3258.73,8.93e-05,2]
[353153316,1739614237239,-500.0,8.93e-05,2]
[353153317,1739614237249,-500.0,8.93e-05,2]
[353153319,1739614237259,-2720.61,8.93e-05,2]
[353153320,1739614237270,-500.0,8.93e-05,2]
[353153321,1739614237279,-500.0,8.93e-05,2]
[353153322,1739614237289,-500.0,8.93e-05,2]
[353153324,1739614237298,-250.96725612,8.93e-05,2]
[353153326,1739614237307,-753.32,8.93e-05,2]
[353153328,1739614237316,-500.0,8.93e-05,2]
[353153330,1739614237327,-624.32,8.93e-05,2]
[353153332,1739614237337,-500.0,8.93e-05,2]
[353153333,1739614237346,-2563.43,8.93e-05,2]
[353153334,1739614237355,-310.05016469,8.93e-05,2]
[353153335,1739614237365,-500.0,8.93e-05,2]
[353153336,1739614237374,-500.0,8.93e-05,2]
[353153338,1739614237389,-500.0,8.93e-05,2]
[353153340,1739614237398,-500.0,8.93e-05,2]
[353153342,1739614237407,-500.0,8.93e-05,2]
[353153344,1739614237417,-3505.87,8.93e-05,2]
[353153345,1739614237428,-500.0,8.93e-05,2]
[353153346,1739614237438,-500.0,8.93e-05,2]
[353153347,1739614237447,-500.0,8.93e-05,2]
[353153349,1739614237536,-500.0,8.93e-05,2]
[353153350,1739614237546,-500.0,8.93e-05,2]
[353153351,1739614237555,-500.0,8.93e-05,2]
[353153352,1739614237564,-541.80103415,8.93e-05,2]
[353153354,1739614237573,-933.12,8.93e-05,2]
[353153355,1739614237582,-1127.76,8.93e-05,2]
[353153356,1739614237591,-500.0,8.93e-05,2]
[353153357,1739614237601,-509.10621093,8.93e-05,2]
[353153358,1739614237611,-502.23941272,8.93e-05,2]
[353153359,1739614237620,-500.0,8.93e-05,2]
[353153361,1739614237629,-745.52,8.93e-05,2]
[353153363,1739614237639,-500.0,8.93e-05,2]
[353153364,1739614237650,-500.0,8.93e-05,2]
[353153365,1739614237663,-500.0,8.93e-05,2]
[353153366,1739614237672,-500.0,8.93e-05,2]
[353153367,1739614237682,-1240.93,8.93e-05,2]
[353153368,1739614237692,-500.0,8.93e-05,2]
[353153369,1739614237701,-558.46586341,8.93e-05,2]
[353153370,1739614237710,-1273.59,8.93e-05,2]
[353153371,1739614237720,-2670.14,8.93e-05,2]
[353153372,1739614237729,-500.0,8.93e-05,2]
[353153373,1739614237738,-500.0,8.93e-05,2]
[353153374,1739614237747,-500.91124956,8.93e-05,2]
[353153375,1739614237757,-915.38,8.93e-05,2]
[353153376,1739614237766,-500.0,8.93e-05,2]
[353153377,1739614237776,-873.85,8.93e-05,2]
[353153378,1739614237785,-734.22,8.93e-05,2]
[353153379,1739614237794,-1601.21,8.93e-05,2]
[353153380,1739614237803,-500.0,8.93e-05,2]
[353153381,1739614237812,-1182.27,8.93e-05,2]
[353153382,1739614237821,-335.43332934,8.93e-05,2]
[353153383,1739614237830,-232.55291529,8.93e-05,2]
[353153384,1739614237839,-1142.33,8.93e-05,2]
[353153385,1739614237849,-1019.77,8.93e-05,2]
[353153386,1739614237858,-500.0,8.93e-05,2]
[353153387,1739614237868,-500.0,8.93e-05,2]
[353153388,1739614237877,-500.0,8.93e-05,2]
[353153389,1739614237886,-500.0,8.93e-05,2]
[353153390,1739614237895,-627.76034019,8.93e-05,2]
[353153391,1739614237905,-500.0,8.93e-05,2]
[353153392,1739614237914,-500.0,8.93e-05,2]
[353153393,1739614237923,-500.0,8.93e-05,2]
[353153394,1739614237932,-761.35,8.93e-05,2]
[353153395,1739614237941,-1547.68,8.93e-05,2]
[353153396,1739614237950,-6588.54,8.93e-05,2]
[353153397,1739614237960,-627.10318423,8.93e-05,2]
[353153398,1739614237969,-500.0,8.93e-05,2]
[353153399,1739614237978,-500.0,8.93e-05,2]
[353153400,1739614237987,-783.48,8.93e-05,2]
[353153401,1739614237996,-611.26640793,8.93e-05,2]
[353153402,1739614238005,-500.0,8.93e-05,2]
[353153403,1739614238014,-500.0,8.93e-05,2]
[353153404,1739614238023,-500.0,8.93e-05,2]
[353153405,1739614238032,-500.0,8.93e-05,2]
[353153406,1739614238042,-613.86,8.93e-05,2]
[353153407,1739614238051,-505.83660186,8.93e-05,2]
[353153408,1739614238061,-500.0,8.93e-05,2]
[353153409,1739614238070,-500.0,8.93e-05,2]
[353153410,1739614238081,-500.0,8.93e-05,2]
[353153411,1739614238090,-2174.17,8.93e-05,2]
[353153412,1739614238099,-500.0,8.932e-05,2]
[353153413,1739614238109,-560.18,8.932e-05,2]
[353153414,1739614238118,-506.08,8.932e-05,2]
[353153415,1739614238128,-500.0,8.932e-05,2]
[353153416,1739614238137,-503.38733049,8.932e-05,2]
[353153417,1739614238146,-500.0,8.932e-05,2]
[353153418,1739614238155,-500.0,8.932e-05,2]
[353153419,1739614238166,-500.0,8.932e-05,2]
[353153420,1739614238176,-500.0,8.932e-05,2]
[353153421,1739614238185,-500.0,8.932e-05,2]
[353153422,1739614238195,-500.0,8.932e-05,2]
[353153423,1739614238205,-500.0,8.932e-05,2]
[353153424,1739614238215,-500.0,8.932e-05,2]
[353153425,1739614238225,-420.24401515,8.932e-05,2]
[353153426,1739614238235,-500.0,8.932e-05,2]
[353153427,1739614238244,-500.0,8.932e-05,2]
[353153428,1739614238254,-1482.26,8.932e-05,2]
[353153429,1739614238263,-500.0,8.932e-05,2]
[353153430,1739614238274,-298.32352582,8.932e-05,2]
[353153431,1739614238283,-516.72,8.932e-05,2]
[353153432,1739614238292,-500.0,8.932e-05,2]
[353153433,1739614238302,-500.0,8.932e-05,2]
[353153434,1739614238311,-500.0,8.932e-05,2]
[353153435,1739614238320,-500.0,8.932e-05,2]
[353153436,1739614238329,-500.0,8.932e-05,2]
[353153437,1739614238338,-525.00797513,8.932e-05,2]
[353153438,1739614238347,-255.19980146,8.932e-05,2]
[353153439,1739614238356,-500.0,8.932e-05,2]
[353153440,1739614238365,-500.0,8.932e-05,2]
[353153441,1739614238375,-500.0,8.932e-05,2]
[353153442,1739614238388,-501.34777137,8.932e-05,2]
[353153443,1739614238398,-500.0,8.932e-05,2]
[353153444,1739614238407,-678.67,8.932e-05,2]
[353153445,1739614238416,-548.1,8.932e-05,2]
[353153446,1739614238427,-500.0,8.932e-05,2]
[353153447,1739614238436,-681.1,8.932e-05,2]
[353153448,1739614238445,-500.0,8.932e-05,2]
[353153449,1739614238454,-500.0,8.932e-05,2]
[353153450,1739614238467,-500.0,8.932e-05,2]
[353153451,1739614238477,-500.0,8.932e-05,2]
[353153452,1739614238486,-500.0,8.932e-05,2]
[353153453,1739614238495,-2585.42,8.932e-05,2]
[353153454,1739614238504,-500.0,8.932e-05,2]
[353153455,1739614238513,-500.0,8.932e-05,2]
[353153456,1739614238522,-500.0,8.932e-05,2]
[353153457,1739614238531,-500.0,8.932e-05,2]
[353153458,1739614238540,-2664.45,8.932e-05,2]
[353153459,1739614238549,-500.0,8.932e-05,2]
[353153460,1739614238558,-500.0,8.932e-05,2]
[353153461,1739614238568,-500.0,8.932e-05,2]
[353153462,1739614238577,-500.0,8.932e-05,2]
[353153463,1739614238586,-500.0,8.932e-05,2]
[353153464,1739614238596,-500.0,8.932e-05,2]
[353153465,1739614238605,-984.03,8.932e-05,2]
[353153466,1739614238614,-500.0,8.932e-05,2]
[353153467,1739614238623,-500.0,8.932e-05,2]
[353153468,1739614238633,-2455.15,8.932e-05,2]
[353153469,1739614238642,-500.0,8.932e-05,2]
[353153470,1739614238651,-500.0,8.932e-05,2]
[353153471,1739614238660,-500.0,8.932e-05,2]
[353153472,1739614238669,-568.6316286,8.932e-05,2]
[353153473,1739614238678,-949.19,8.932e-05,2]
[353153474,1739614238687,-563.04,8.932e-05,2]
[353153475,1739614238696,-500.0,8.932e-05,2]
[353153476,1739614238705,-1441.99,8.932e-05,2]
[353153477,1739614238714,-621.93,8.932e-05,2]
[353153478,1739614238723,-500.0,8.932e-05,2]
[353153479,1739614238733,-500.0,8.932e-05,2]
[353153480,1739614238742,-500.0,8.932e-05,2]
[353153481,1739614238751,-500.0,8.932e-05,2]
[353153482,1739614238760,-780.29,8.932e-05,2]
[353153483,1739614238770,-500.0,8.932e-05,2]
[353153484,1739614238780,-500.0,8.932e-05,2]
[353153485,1739614238789,-500.0,8.932e-05,2]
[353153486,1739614238871,-1449.48,8.932e-05,2]
[353153487,1739614238881,-12634.98624064,8.932e-05,2]
[353153488,1739614238897,-2310.0,8.932e-05,2]
[353153554,1739614242884,-500.0,8.847e-05,2]
[353153556,1739614242894,-474.9999999,8.847e-05,2]
[353153929,1739614246719,-3942.3500001,8.847e-05,2]
[353153931,1739614246729,-500.0,8.848e-05,2]
[353153933,1739614246739,-500.0,8.851e-05,2]
[353153934,1739614246749,-500.0,8.851e-05,2]
[353153936,1739614246759,-500.0,8.851e-05,2]
[353153938,1739614246768,-500.0,8.851e-05,2]
[353153940,1739614246777,-500.0,8.851e-05,2]
[353153943,1739614246787,-529.68685126,8.851e-05,2]
[353153945,1739614246796,-500.0,8.851e-05,2]
[353153965,1739614246972,-500.0,8.851e-05,2]
[353153968,1739614246993,-500.0,8.851e-05,2]
[353153970,1739614247002,-529.68685126,8.851e-05,2]
[353153972,1739614247012,-203.72690184,8.851e-05,2]
[353153974,1739614247021,-500.0,8.851e-05,2]
[353153976,1739614247030,-500.0,8.851e-05,2]
[353153978,1739614247039,-500.0,8.851e-05,2]
[353153980,1739614247049,-500.0,8.851e-05,2]
[353153982,1739614247058,-529.68685126,8.851e-05,2]
[353153984,1739614247067,-566.80906446,8.851e-05,2]
[353153986,1739614247077,-500.0,8.851e-05,2]
[353153988,1739614247086,-500.0,8.851e-05,2]
[353153990,1739614247096,-529.68685126,8.851e-05,2]
[353153992,1739614247106,-550.643507,8.851e-05,2]
[353153994,1739614247115,-500.0,8.851e-05,2]
[353153996,1739614247124,-500.0,8.851e-05,2]
[353153998,1739614247133,-529.68685126,8.851e-05,2]
[353154000,1739614247143,-500.0,8.851e-05,2]
[353154002,1739614247152,-422.38023675,8.851e-05,2]
[353154004,1739614247161,-500.0,8.851e-05,2]
[353154006,1739614247171,-529.68685126,8.851e-05,2]
[353154008,1739614247184,-500.0,8.851e-05,2]
[353154010,1739614247193,-529.68685126,8.851e-05,2]
[353154012,1739614247202,-500.0,8.851e-05,2]
[353154014,1739614247211,-529.68685126,8.851e-05,2]
[353154016,1739614247220,-500.0,8.851e-05,2]
[353154018,1739614247230,-500.0,8.851e-05,2]
[353154020,1739614247239,-529.68685126,8.851e-05,2]
[353154022,1739614247248,-500.0,8.851e-05,2]
[353154024,1739614247257,-529.68685126,8.851e-05,2]
[353154026,1739614247267,-500.0,8.851e-05,2]
[353154028,1739614247276,-500.0,8.851e-05,2]
[353154030,1739614247286,-529.68685126,8.851e-05,2]